[Event "Titled Tuesday Blitz March 21 Late 2023"]
[White "Becerra, Juan David"]
[Black "Storn, Justin"]
[WhiteFideId "4404998"]
[BlackFideId "30922720"]
[WhiteElo "2282"]
[BlackElo "2316"]
[Result "1-0"]
[Round "06"]
[TimeControl "180+2"]
[Date "2023.03.21"]
[WhiteClock "0:02:44"]
[BlackClock "0:01:55"]

1. e4 {[%clk 0:02:59]}  c6 {[%clk 0:03:00]} 2. c4 {[%clk 0:02:58]}  d5 {[%clk 0:03:01]} 3. cxd5 {[%clk 0:02:59]}  cxd5 {[%clk 0:03:01]} 4. exd5 {[%clk 0:03:00]}  Nf6 {[%clk 0:03:02]} 5. Qa4+ {[%clk 0:02:59]}  Nbd7 {[%clk 0:03:00]} 6. Nc3 {[%clk 0:02:59]}  g6 {[%clk 0:03:01]} 7. Bc4 {[%clk 0:02:59]}  Bg7 {[%clk 0:03:01]} 8. d3 {[%clk 0:03:00]}  O-O {[%clk 0:03:00]} 9. Nf3 {[%clk 0:03:00]}  Nb6 {[%clk 0:02:43]} 10. Qb3 {[%clk 0:03:00]}  Bf5 {[%clk 0:02:24]} 11. Be3 {[%clk 0:02:51]}  Nxc4 {[%clk 0:02:21]} 12. dxc4 {[%clk 0:02:52]}  Qa5 {[%clk 0:02:12]} 13. O-O {[%clk 0:02:50]}  Rab8 {[%clk 0:01:58]} 14. Rfe1 {[%clk 0:02:45]}  a6 {[%clk 0:01:55]} 15. Bb6 {[%clk 0:02:44]} 1-0


[Site "https://www.chess.com"]

[Event "Titled Tuesday Blitz March 21 Late 2023"]
[White "Harish, Neeraj"]
[Black "Bruedigam, Martin"]
[WhiteFideId "30958130"]
[BlackFideId "24608033"]
[WhiteElo "1963"]
[BlackElo "2331"]
[Result "0-1"]
[Round "06"]
[TimeControl "180+2"]
[Date "2023.03.21"]
[WhiteClock "0:01:01"]
[BlackClock "0:00:34"]

1. e4 {[%clk 0:03:00]}  c6 {[%clk 0:03:00]} 2. d4 {[%clk 0:03:00]}  d5 {[%clk 0:03:00]} 3. e5 {[%clk 0:03:01]}  Bf5 {[%clk 0:02:59]} 4. h4 {[%clk 0:03:01]}  Qc7 {[%clk 0:02:59]} 5. h5 {[%clk 0:02:58]}  c5 {[%clk 0:02:57]} 6. dxc5 {[%clk 0:02:56]}  Qxe5+ {[%clk 0:02:55]} 7. Be2 {[%clk 0:02:47]}  Nf6 {[%clk 0:02:53]} 8. Nf3 {[%clk 0:02:46]}  Qc7 {[%clk 0:02:53]} 9. Be3 {[%clk 0:02:46]}  e5 {[%clk 0:02:42]} 10. b4 {[%clk 0:02:41]}  d4 {[%clk 0:02:30]} 11. Bd2 {[%clk 0:02:37]}  a5 {[%clk 0:02:22]} 12. h6 {[%clk 0:02:34]}  axb4 {[%clk 0:02:18]} 13. hxg7 {[%clk 0:02:33]}  Bxg7 {[%clk 0:02:19]} 14. Bxb4 {[%clk 0:02:30]}  Nc6 {[%clk 0:02:16]} 15. Bd2 {[%clk 0:02:24]}  e4 {[%clk 0:02:13]} 16. Nh4 {[%clk 0:02:22]}  Be6 {[%clk 0:02:11]} 17. Bb5 {[%clk 0:02:10]}  e3 {[%clk 0:02:04]} 18. Bxc6+ {[%clk 0:02:02]}  bxc6 {[%clk 0:01:56]} 19. fxe3 {[%clk 0:01:43]}  Qg3+ {[%clk 0:01:55]} 20. Kf1 {[%clk 0:01:44]}  Ng4 {[%clk 0:01:30]} 21. Qf3 {[%clk 0:01:33]}  Qxf3+ {[%clk 0:01:19]} 22. gxf3 {[%clk 0:01:32]}  Nxe3+ {[%clk 0:01:13]} 23. Bxe3 {[%clk 0:01:31]}  dxe3 {[%clk 0:01:14]} 24. c3 {[%clk 0:01:32]}  Bc4+ {[%clk 0:01:12]} 25. Ke1 {[%clk 0:01:31]}  Bd3 {[%clk 0:00:52]} 26. Rg1 {[%clk 0:01:23]}  O-O {[%clk 0:00:37]} 27. a4 {[%clk 0:01:08]}  Kh8 {[%clk 0:00:35]} 28. Rg5 {[%clk 0:01:01]}  Rfb8 {[%clk 0:00:34]} 0-1


[Site "https://www.chess.com"]

[Event "Titled Tuesday Blitz March 21 Late 2023"]
[White "Vadim_Galchenko"]
[Black "Huber, Benedikt"]
[BlackFideId "12923583"]
[WhiteElo "2197"]
[BlackElo "2199"]
[Result "0-1"]
[Round "06"]
[TimeControl "180+2"]
[Date "2023.03.21"]
[WhiteClock "0:01:21"]
[BlackClock "0:01:21"]

1. e4 {[%clk 0:03:00]}  e6 {[%clk 0:02:39]} 2. d4 {[%clk 0:03:00]}  d5 {[%clk 0:02:40]} 3. Nd2 {[%clk 0:03:00]}  Nc6 {[%clk 0:02:40]} 4. Ngf3 {[%clk 0:03:00]}  Nf6 {[%clk 0:02:39]} 5. e5 {[%clk 0:03:00]}  Nd7 {[%clk 0:02:40]} 6. Be2 {[%clk 0:03:01]}  f6 {[%clk 0:02:41]} 7. exf6 {[%clk 0:03:02]}  Nxf6 {[%clk 0:02:41]} 8. Nf1 {[%clk 0:03:03]}  Bd6 {[%clk 0:02:42]} 9. Ne3 {[%clk 0:03:03]}  O-O {[%clk 0:02:42]} 10. O-O {[%clk 0:03:03]}  Bd7 {[%clk 0:02:40]} 11. c4 {[%clk 0:02:58]}  Be8 {[%clk 0:02:38]} 12. c5 {[%clk 0:02:57]}  Be7 {[%clk 0:02:38]} 13. Bb5 {[%clk 0:02:46]}  Ne4 {[%clk 0:02:31]} 14. Bxc6 {[%clk 0:02:34]}  Bxc6 {[%clk 0:02:32]} 15. Ne5 {[%clk 0:02:34]}  Bb5 {[%clk 0:02:33]} 16. Nd3 {[%clk 0:02:32]}  Bf6 {[%clk 0:02:32]} 17. f3 {[%clk 0:02:32]}  Bxd4 {[%clk 0:02:28]} 18. fxe4 {[%clk 0:02:23]}  Rxf1+ {[%clk 0:02:29]} 19. Kxf1 {[%clk 0:02:23]}  dxe4 {[%clk 0:02:29]} 20. Kg1 {[%clk 0:02:12]}  Bxd3 {[%clk 0:02:27]} 21. Kh1 {[%clk 0:02:08]}  Qh4 {[%clk 0:02:17]} 22. Bd2 {[%clk 0:02:05]}  Rf8 {[%clk 0:02:06]} 23. Qb3 {[%clk 0:01:54]}  Qf6 {[%clk 0:01:51]} 24. h3 {[%clk 0:01:48]}  Bxc5 {[%clk 0:01:39]} 25. Ng4 {[%clk 0:01:46]}  Qf5 {[%clk 0:01:31]} 26. Qxb7 {[%clk 0:01:44]}  h5 {[%clk 0:01:24]} 27. Ne3 {[%clk 0:01:33]}  Qf2 {[%clk 0:01:23]} 28. Qc6 {[%clk 0:01:21]}  Bxe3 {[%clk 0:01:22]} 29. Qxe6+ {[%clk 0:01:21]}  Kh8 {[%clk 0:01:21]} 0-1


[Site "https://www.chess.com"]

[Event "Titled Tuesday Blitz March 21 Late 2023"]
[White "Piriflillo"]
[Black "dorpato"]
[WhiteElo "2430"]
[BlackElo "2014"]
[Result "1-0"]
[Round "06"]
[TimeControl "180+2"]
[Date "2023.03.21"]
[WhiteClock "0:00:49"]
[BlackClock "0:00:20"]

1. e4 {[%clk 0:03:00]}  c5 {[%clk 0:02:58]} 2. Nc3 {[%clk 0:02:58]}  g6 {[%clk 0:02:56]} 3. d4 {[%clk 0:02:58]}  Bg7 {[%clk 0:02:53]} 4. Be3 {[%clk 0:02:50]}  cxd4 {[%clk 0:02:42]} 5. Bxd4 {[%clk 0:02:50]}  e5 {[%clk 0:02:28]} 6. Bc5 {[%clk 0:02:43]}  b6 {[%clk 0:02:23]} 7. Bd6 {[%clk 0:02:40]}  Bb7 {[%clk 0:02:20]} 8. Nf3 {[%clk 0:02:36]}  Nc6 {[%clk 0:02:19]} 9. Bc4 {[%clk 0:02:36]}  Nge7 {[%clk 0:02:13]} 10. Qd2 {[%clk 0:02:19]}  O-O {[%clk 0:02:05]} 11. O-O-O {[%clk 0:02:14]}  Na5 {[%clk 0:02:03]} 12. Bd5 {[%clk 0:02:03]}  Nxd5 {[%clk 0:01:49]} 13. Bxf8 {[%clk 0:02:00]}  Nxc3 {[%clk 0:01:45]} 14. Bxg7 {[%clk 0:01:47]}  Nxd1 {[%clk 0:01:37]} 15. Bxe5 {[%clk 0:01:42]}  f6 {[%clk 0:01:27]} 16. Bd4 {[%clk 0:01:31]}  Nxb2 {[%clk 0:01:23]} 17. Bxb2 {[%clk 0:01:27]}  Nc4 {[%clk 0:01:23]} 18. Qd4 {[%clk 0:01:22]}  Nxb2 {[%clk 0:01:22]} 19. Kxb2 {[%clk 0:01:22]}  Qe7 {[%clk 0:01:20]} 20. Re1 {[%clk 0:01:18]}  Rc8 {[%clk 0:01:13]} 21. Re3 {[%clk 0:01:08]}  Kf7 {[%clk 0:00:48]} 22. e5 {[%clk 0:01:00]}  Bxf3 {[%clk 0:00:47]} 23. exf6 {[%clk 0:00:56]}  Qc5 {[%clk 0:00:20]} 24. Qxd7+ {[%clk 0:00:49]}  Kf8 {[%clk 0:00:20]} 25. Qg7# {[%clk 0:00:49]} 1-0


[Site "https://www.chess.com"]

[Event "Titled Tuesday Blitz March 21 Late 2023"]
[White "Korkmaz, Necmettin"]
[Black "Gallegos Diaz, Carlos Alberto"]
[WhiteFideId "6303285"]
[BlackFideId "3900886"]
[WhiteElo "2097"]
[BlackElo "2362"]
[Result "1-0"]
[Round "06"]
[TimeControl "180+2"]
[Date "2023.03.21"]
[WhiteClock "0:00:22"]
[BlackClock "0:00:06"]

1. e4 {[%clk 0:02:54]}  d6 {[%clk 0:02:59]} 2. d4 {[%clk 0:02:53]}  Nf6 {[%clk 0:02:58]} 3. Nc3 {[%clk 0:02:53]}  c6 {[%clk 0:02:59]} 4. a4 {[%clk 0:02:26]}  Qa5 {[%clk 0:02:54]} 5. Bd3 {[%clk 0:02:17]}  e5 {[%clk 0:02:53]} 6. Ne2 {[%clk 0:02:12]}  Be7 {[%clk 0:02:53]} 7. O-O {[%clk 0:02:12]}  O-O {[%clk 0:02:52]} 8. h3 {[%clk 0:02:09]}  Nbd7 {[%clk 0:02:48]} 9. Be3 {[%clk 0:02:09]}  Re8 {[%clk 0:02:47]} 10. Qd2 {[%clk 0:02:09]}  Qc7 {[%clk 0:02:44]} 11. d5 {[%clk 0:02:07]}  Bf8 {[%clk 0:02:38]} 12. Bc4 {[%clk 0:01:50]}  Nb6 {[%clk 0:01:58]} 13. Bb3 {[%clk 0:01:41]}  cxd5 {[%clk 0:01:51]} 14. Nb5 {[%clk 0:01:29]}  Qd8 {[%clk 0:01:30]} 15. exd5 {[%clk 0:00:59]}  a6 {[%clk 0:00:48]} 16. Nbc3 {[%clk 0:00:57]}  Bf5 {[%clk 0:00:39]} 17. Ng3 {[%clk 0:00:54]}  Bg6 {[%clk 0:00:37]} 18. a5 {[%clk 0:00:54]}  Nbd7 {[%clk 0:00:36]} 19. f3 {[%clk 0:00:49]}  Rc8 {[%clk 0:00:33]} 20. Nge4 {[%clk 0:00:46]}  Nxe4 {[%clk 0:00:28]} 21. Nxe4 {[%clk 0:00:41]}  Bxe4 {[%clk 0:00:21]} 22. fxe4 {[%clk 0:00:41]}  Qh4 {[%clk 0:00:20]} 23. Ba4 {[%clk 0:00:37]}  Rc7 {[%clk 0:00:16]} 24. Bb6 {[%clk 0:00:36]}  Nxb6 {[%clk 0:00:13]} 25. Bxe8 {[%clk 0:00:36]}  Re7 {[%clk 0:00:09]} 26. Bxf7+ {[%clk 0:00:32]}  Rxf7 {[%clk 0:00:10]} 27. Rxf7 {[%clk 0:00:32]}  Kxf7 {[%clk 0:00:10]} 28. axb6 {[%clk 0:00:30]}  Qxe4 {[%clk 0:00:10]} 29. Rf1+ {[%clk 0:00:28]}  Ke8 {[%clk 0:00:09]} 30. Qf2 {[%clk 0:00:29]}  Be7 {[%clk 0:00:09]} 31. Qf7+ {[%clk 0:00:29]}  Kd7 {[%clk 0:00:09]} 32. Qe6+ {[%clk 0:00:29]}  Kd8 {[%clk 0:00:08]} 33. Rf7 {[%clk 0:00:29]}  Qh4 {[%clk 0:00:06]} 34. Rxg7 {[%clk 0:00:23]}  Qe1+ {[%clk 0:00:05]} 35. Kh2 {[%clk 0:00:22]}  Qh4 {[%clk 0:00:06]} 36. Rg8+ {[%clk 0:00:22]} 1-0


[Site "https://www.chess.com"]

[Event "Titled Tuesday Blitz March 21 Late 2023"]
[White "Sarkar, Justin"]
[Black "Carbone, Diego"]
[WhiteFideId "2010011"]
[BlackFideId "3002179"]
[WhiteElo "2189"]
[BlackElo "2266"]
[Result "0-1"]
[Round "06"]
[TimeControl "180+2"]
[Date "2023.03.21"]
[WhiteClock "0:00:04"]
[BlackClock "0:01:15"]

1. e4 {[%clk 0:02:56]}  e5 {[%clk 0:02:59]} 2. f4 {[%clk 0:02:55]}  exf4 {[%clk 0:02:59]} 3. Nf3 {[%clk 0:02:56]}  Nf6 {[%clk 0:02:59]} 4. e5 {[%clk 0:02:51]}  Nh5 {[%clk 0:02:58]} 5. Be2 {[%clk 0:02:46]}  g6 {[%clk 0:02:52]} 6. O-O {[%clk 0:02:44]}  Bg7 {[%clk 0:02:49]} 7. d4 {[%clk 0:02:43]}  O-O {[%clk 0:02:49]} 8. Ne1 {[%clk 0:02:26]}  d6 {[%clk 0:02:16]} 9. Bxh5 {[%clk 0:02:18]}  gxh5 {[%clk 0:02:17]} 10. exd6 {[%clk 0:02:16]}  Bg4 {[%clk 0:02:17]} 11. Qd3 {[%clk 0:01:50]}  Qxd6 {[%clk 0:02:11]} 12. c3 {[%clk 0:01:48]}  c5 {[%clk 0:01:55]} 13. Bxf4 {[%clk 0:01:31]}  Qg6 {[%clk 0:01:51]} 14. Qxg6 {[%clk 0:01:09]}  hxg6 {[%clk 0:01:52]} 15. dxc5 {[%clk 0:01:03]}  Nd7 {[%clk 0:01:52]} 16. Bd6 {[%clk 0:00:15]}  Rfc8 {[%clk 0:01:52]} 17. h3 {[%clk 0:00:12]}  Bf5 {[%clk 0:01:50]} 18. Nd2 {[%clk 0:00:09]}  Nxc5 {[%clk 0:01:47]} 19. Nb3 {[%clk 0:00:06]}  Na4 {[%clk 0:01:29]} 20. Rf2 {[%clk 0:00:05]}  Bh6 {[%clk 0:01:17]} 21. Nd4 {[%clk 0:00:05]}  Be3 {[%clk 0:01:14]} 22. Nxf5 {[%clk 0:00:04]}  gxf5 {[%clk 0:01:15]} 0-1


[Site "https://www.chess.com"]

[Event "Titled Tuesday Blitz March 21 Late 2023"]
[White "Kaplan, Avi Harrison"]
[Black "TigranHH"]
[WhiteFideId "30934559"]
[WhiteElo "1983"]
[BlackElo "2300"]
[Result "0-1"]
[Round "06"]
[TimeControl "180+2"]
[Date "2023.03.21"]
[WhiteClock "0:00:08"]
[BlackClock "0:00:16"]

1. Nf3 {[%clk 0:02:51]}  d5 {[%clk 0:02:58]} 2. g3 {[%clk 0:02:52]}  Nc6 {[%clk 0:02:56]} 3. Bg2 {[%clk 0:02:52]}  e5 {[%clk 0:02:57]} 4. O-O {[%clk 0:02:53]}  Nf6 {[%clk 0:02:57]} 5. c4 {[%clk 0:02:52]}  d4 {[%clk 0:02:55]} 6. e3 {[%clk 0:02:52]}  Be7 {[%clk 0:02:52]} 7. exd4 {[%clk 0:02:52]}  exd4 {[%clk 0:02:53]} 8. Re1 {[%clk 0:02:52]}  O-O {[%clk 0:02:52]} 9. d3 {[%clk 0:02:50]}  h6 {[%clk 0:02:47]} 10. a3 {[%clk 0:02:49]}  a5 {[%clk 0:02:46]} 11. Ne5 {[%clk 0:02:49]}  Nxe5 {[%clk 0:02:41]} 12. Rxe5 {[%clk 0:02:50]}  c6 {[%clk 0:02:36]} 13. Nd2 {[%clk 0:02:46]}  Bg4 {[%clk 0:02:30]} 14. Qb3 {[%clk 0:02:43]}  Bd6 {[%clk 0:02:25]} 15. Re1 {[%clk 0:02:40]}  Re8 {[%clk 0:02:21]} 16. Rxe8+ {[%clk 0:02:37]}  Qxe8 {[%clk 0:02:21]} 17. Qxb7 {[%clk 0:02:37]}  Qe1+ {[%clk 0:02:03]} 18. Nf1 {[%clk 0:02:36]}  Rd8 {[%clk 0:01:47]} 19. Qxc6 {[%clk 0:02:26]}  Be2 {[%clk 0:01:45]} 20. c5 {[%clk 0:02:16]}  Ng4 {[%clk 0:01:44]} 21. Be3 {[%clk 0:01:46]}  Qxa1 {[%clk 0:01:44]} 22. Bxd4 {[%clk 0:01:40]}  Be7 {[%clk 0:01:19]} 23. Qe4 {[%clk 0:01:29]}  Bxf1 {[%clk 0:01:05]} 24. Bxf1 {[%clk 0:01:30]}  Nxh2 {[%clk 0:01:02]} 25. Kxh2 {[%clk 0:01:15]}  Qxf1 {[%clk 0:01:02]} 26. c6 {[%clk 0:01:15]}  Bd6 {[%clk 0:00:49]} 27. Qg4 {[%clk 0:01:01]}  g6 {[%clk 0:00:35]} 28. Qf3 {[%clk 0:01:01]}  Bxg3+ {[%clk 0:00:19]} 29. Qxg3 {[%clk 0:00:33]}  Rxd4 {[%clk 0:00:12]} 30. c7 {[%clk 0:00:33]}  Qc1 {[%clk 0:00:12]} 31. Qh3 {[%clk 0:00:32]}  Qxc7+ {[%clk 0:00:10]} 32. Kg2 {[%clk 0:00:32]}  Qd7 {[%clk 0:00:10]} 33. Qxh6 {[%clk 0:00:22]}  Rxd3 {[%clk 0:00:09]} 34. Qh4 {[%clk 0:00:18]}  Qd5+ {[%clk 0:00:09]} 35. Kh2 {[%clk 0:00:18]}  Rd4 {[%clk 0:00:09]} 36. Qh6 {[%clk 0:00:13]}  Qe5+ {[%clk 0:00:09]} 37. Kg2 {[%clk 0:00:13]}  Qf4 {[%clk 0:00:09]} 38. Qh3 {[%clk 0:00:09]}  Qg4+ {[%clk 0:00:09]} 39. Qxg4 {[%clk 0:00:10]}  Rxg4+ {[%clk 0:00:10]} 40. Kf3 {[%clk 0:00:10]}  Rc4 {[%clk 0:00:10]} 41. b4 {[%clk 0:00:09]}  axb4 {[%clk 0:00:10]} 42. axb4 {[%clk 0:00:10]}  Rxb4 {[%clk 0:00:10]} 43. Kg3 {[%clk 0:00:10]}  f5 {[%clk 0:00:10]} 44. Kg2 {[%clk 0:00:11]}  g5 {[%clk 0:00:11]} 45. Kg3 {[%clk 0:00:12]}  Kg7 {[%clk 0:00:11]} 46. Kg2 {[%clk 0:00:13]}  Kg6 {[%clk 0:00:12]} 47. Kg3 {[%clk 0:00:14]}  Kh5 {[%clk 0:00:12]} 48. Kg2 {[%clk 0:00:15]}  Rb3 {[%clk 0:00:13]} 49. Kh2 {[%clk 0:00:15]}  Kg4 {[%clk 0:00:14]} 50. Kg2 {[%clk 0:00:16]}  Kf4 {[%clk 0:00:14]} 51. Kg1 {[%clk 0:00:17]}  g4 {[%clk 0:00:15]} 52. Kg2 {[%clk 0:00:16]}  Rb2 {[%clk 0:00:16]} 53. Kg1 {[%clk 0:00:10]}  Kf3 {[%clk 0:00:17]} 54. Kh1 {[%clk 0:00:11]}  g3 {[%clk 0:00:16]} 55. Kg1 {[%clk 0:00:10]}  gxf2+ {[%clk 0:00:16]} 56. Kh2 {[%clk 0:00:08]}  f1=Q# {[%clk 0:00:16]} 0-1


[Site "https://www.chess.com"]

[Event "Titled Tuesday Blitz March 21 Late 2023"]
[White "Michalski, Olaf"]
[Black "Jimenez Jimenez, Leandro"]
[WhiteFideId "1106740"]
[BlackFideId "6415253"]
[WhiteElo "2173"]
[BlackElo "2263"]
[Result "1-0"]
[Round "06"]
[TimeControl "180+2"]
[Date "2023.03.21"]
[WhiteClock "0:00:06"]
[BlackClock "0:00:01"]

1. d4 {[%clk 0:03:00]}  d5 {[%clk 0:02:56]} 2. c4 {[%clk 0:03:01]}  dxc4 {[%clk 0:02:54]} 3. e4 {[%clk 0:02:59]}  e5 {[%clk 0:02:54]} 4. d5 {[%clk 0:02:58]}  Nf6 {[%clk 0:02:52]} 5. Nc3 {[%clk 0:02:58]}  b5 {[%clk 0:02:51]} 6. a3 {[%clk 0:02:56]}  Bc5 {[%clk 0:02:45]} 7. Qc2 {[%clk 0:02:31]}  c6 {[%clk 0:02:11]} 8. Bg5 {[%clk 0:02:20]}  h6 {[%clk 0:02:03]} 9. Bh4 {[%clk 0:02:16]}  Qb6 {[%clk 0:01:58]} 10. Bxf6 {[%clk 0:02:08]}  gxf6 {[%clk 0:01:57]} 11. Nf3 {[%clk 0:02:02]}  Bb7 {[%clk 0:01:45]} 12. O-O-O {[%clk 0:01:52]}  a5 {[%clk 0:01:27]} 13. dxc6 {[%clk 0:01:41]}  Bxc6 {[%clk 0:01:10]} 14. Nd5 {[%clk 0:01:41]}  Bxd5 {[%clk 0:01:08]} 15. Rxd5 {[%clk 0:01:40]}  Nc6 {[%clk 0:01:02]} 16. a4 {[%clk 0:01:23]}  Nb4 {[%clk 0:00:59]} 17. Qd1 {[%clk 0:01:17]}  Nxd5 {[%clk 0:00:57]} 18. exd5 {[%clk 0:01:12]}  c3 {[%clk 0:00:50]} 19. Bxb5+ {[%clk 0:01:06]}  Ke7 {[%clk 0:00:48]} 20. bxc3 {[%clk 0:01:07]}  Rhc8 {[%clk 0:00:46]} 21. c4 {[%clk 0:00:52]}  Bxf2 {[%clk 0:00:40]} 22. Rf1 {[%clk 0:00:44]}  Be3+ {[%clk 0:00:39]} 23. Kc2 {[%clk 0:00:44]}  Rd8 {[%clk 0:00:32]} 24. Nh4 {[%clk 0:00:38]}  Rac8 {[%clk 0:00:28]} 25. Qg4 {[%clk 0:00:31]}  Bg5 {[%clk 0:00:11]} 26. Nf5+ {[%clk 0:00:24]}  Kf8 {[%clk 0:00:11]} 27. h4 {[%clk 0:00:25]}  Rxc4+ {[%clk 0:00:04]} 28. Qxc4 {[%clk 0:00:22]}  Be3 {[%clk 0:00:01]} 29. Rf3 {[%clk 0:00:17]}  Bg5 {[%clk 0:00:02]} 30. hxg5 {[%clk 0:00:17]}  hxg5 {[%clk 0:00:03]} 31. Ne3 {[%clk 0:00:12]}  Kg7 {[%clk 0:00:03]} 32. Bc6 {[%clk 0:00:11]}  Rb8 {[%clk 0:00:02]} 33. Qb5 {[%clk 0:00:10]}  Qc7 {[%clk 0:00:02]} 34. Qc5 {[%clk 0:00:08]}  Rb4 {[%clk 0:00:01]} 35. Nc4 {[%clk 0:00:07]}  e4 {[%clk 0:00:01]} 36. Rf5 {[%clk 0:00:07]}  Qg3 {[%clk 0:00:01]} 37. Nd2 {[%clk 0:00:06]} 1-0


[Site "https://www.chess.com"]

[Event "Titled Tuesday Blitz March 21 Late 2023"]
[White "Cella, Glaucio Dalla Cortt"]
[Black "rionelG"]
[WhiteFideId "2119455"]
[WhiteElo "2011"]
[BlackElo "2276"]
[Result "1-0"]
[Round "06"]
[TimeControl "180+2"]
[Date "2023.03.21"]
[WhiteClock "0:00:30"]
[BlackClock "0:00:01"]

1. e4 {[%clk 0:03:00]}  c5 {[%clk 0:01:13]} 2. Nf3 {[%clk 0:02:48]}  d6 {[%clk 0:01:13]} 3. c3 {[%clk 0:02:49]}  Nf6 {[%clk 0:01:12]} 4. Be2 {[%clk 0:02:48]}  Nbd7 {[%clk 0:01:12]} 5. O-O {[%clk 0:02:48]}  Nxe4 {[%clk 0:01:11]} 6. d4 {[%clk 0:02:42]}  e6 {[%clk 0:01:11]} 7. dxc5 {[%clk 0:02:32]}  Nexc5 {[%clk 0:01:07]} 8. b4 {[%clk 0:02:32]}  Ne4 {[%clk 0:01:06]} 9. c4 {[%clk 0:02:31]}  Be7 {[%clk 0:01:04]} 10. Bb2 {[%clk 0:02:31]}  Nef6 {[%clk 0:01:03]} 11. Na3 {[%clk 0:02:28]}  a6 {[%clk 0:01:02]} 12. Nc2 {[%clk 0:02:28]}  O-O {[%clk 0:01:01]} 13. Ne3 {[%clk 0:02:24]}  b6 {[%clk 0:01:01]} 14. a3 {[%clk 0:02:23]}  Bb7 {[%clk 0:01:01]} 15. Rc1 {[%clk 0:02:22]}  Rc8 {[%clk 0:01:01]} 16. Re1 {[%clk 0:02:08]}  Qc7 {[%clk 0:01:01]} 17. Nd2 {[%clk 0:02:06]}  Qb8 {[%clk 0:01:01]} 18. Qb3 {[%clk 0:02:04]}  d5 {[%clk 0:00:59]} 19. cxd5 {[%clk 0:01:57]}  Nxd5 {[%clk 0:00:59]} 20. Nxd5 {[%clk 0:01:57]}  Bxd5 {[%clk 0:00:59]} 21. Qe3 {[%clk 0:01:53]}  Bf6 {[%clk 0:00:56]} 22. Rxc8 {[%clk 0:01:48]}  Rxc8 {[%clk 0:00:56]} 23. Bxf6 {[%clk 0:01:49]}  Nxf6 {[%clk 0:00:56]} 24. Bxa6 {[%clk 0:01:42]}  Rc2 {[%clk 0:00:51]} 25. h3 {[%clk 0:01:37]}  Qa8 {[%clk 0:00:43]} 26. Bd3 {[%clk 0:01:37]}  Ra2 {[%clk 0:00:42]} 27. Nc4 {[%clk 0:01:12]}  Bxg2 {[%clk 0:00:24]} 28. Bb1 {[%clk 0:01:05]}  Ra1 {[%clk 0:00:16]} 29. Bxh7+ {[%clk 0:00:49]}  Nxh7 {[%clk 0:00:17]} 30. Rxa1 {[%clk 0:00:49]}  Bd5 {[%clk 0:00:17]} 31. Nxb6 {[%clk 0:00:47]}  Qc6 {[%clk 0:00:15]} 32. Nxd5 {[%clk 0:00:48]}  Qxd5 {[%clk 0:00:16]} 33. a4 {[%clk 0:00:43]}  Ng5 {[%clk 0:00:16]} 34. Ra3 {[%clk 0:00:34]}  Qd1+ {[%clk 0:00:11]} 35. Kh2 {[%clk 0:00:32]}  f6 {[%clk 0:00:03]} 36. a5 {[%clk 0:00:30]}  Qf1 {[%clk 0:00:01]} 37. a6 {[%clk 0:00:30]} 1-0


[Site "https://www.chess.com"]

[Event "Titled Tuesday Blitz March 21 Late 2023"]
[White "Szyszylo, Rafal"]
[Black "Einarsson, Halldor Gretar"]
[WhiteFideId "1109626"]
[BlackFideId "2300150"]
[WhiteElo "1951"]
[BlackElo "2142"]
[Result "1-0"]
[Round "06"]
[TimeControl "180+2"]
[Date "2023.03.21"]
[WhiteClock "0:00:03"]
[BlackClock "0:00:01"]

1. e4 {[%clk 0:03:00]}  c5 {[%clk 0:02:58]} 2. Ne2 {[%clk 0:03:00]}  Nc6 {[%clk 0:02:57]} 3. g3 {[%clk 0:03:00]}  g6 {[%clk 0:02:57]} 4. Bg2 {[%clk 0:03:01]}  Bg7 {[%clk 0:02:57]} 5. c3 {[%clk 0:03:01]}  e6 {[%clk 0:02:55]} 6. O-O {[%clk 0:03:00]}  Nge7 {[%clk 0:02:55]} 7. d4 {[%clk 0:03:00]}  cxd4 {[%clk 0:02:55]} 8. cxd4 {[%clk 0:03:00]}  d5 {[%clk 0:02:55]} 9. e5 {[%clk 0:03:00]}  O-O {[%clk 0:02:48]} 10. Nbc3 {[%clk 0:03:00]}  Nf5 {[%clk 0:02:45]} 11. Bh3 {[%clk 0:02:25]}  f6 {[%clk 0:02:32]} 12. Bxf5 {[%clk 0:02:12]}  gxf5 {[%clk 0:02:31]} 13. exf6 {[%clk 0:02:09]}  Qxf6 {[%clk 0:02:28]} 14. Be3 {[%clk 0:02:08]}  b6 {[%clk 0:02:25]} 15. Qa4 {[%clk 0:02:03]}  Na5 {[%clk 0:02:15]} 16. Nf4 {[%clk 0:01:58]}  Qf7 {[%clk 0:02:07]} 17. Nb5 {[%clk 0:01:40]}  Bd7 {[%clk 0:02:00]} 18. Qb4 {[%clk 0:01:39]}  Nc6 {[%clk 0:01:38]} 19. Qb3 {[%clk 0:01:38]}  Na5 {[%clk 0:01:26]} 20. Qd3 {[%clk 0:01:35]}  Nc4 {[%clk 0:01:23]} 21. a4 {[%clk 0:01:26]}  Nxb2 {[%clk 0:01:22]} 22. Qb3 {[%clk 0:01:26]}  Nc4 {[%clk 0:01:20]} 23. Rfd1 {[%clk 0:01:12]}  Rfc8 {[%clk 0:01:14]} 24. Nc3 {[%clk 0:01:10]}  Na5 {[%clk 0:01:12]} 25. Qb2 {[%clk 0:01:09]}  Rc4 {[%clk 0:01:09]} 26. Nb5 {[%clk 0:01:10]}  Bf8 {[%clk 0:00:59]} 27. h4 {[%clk 0:01:07]}  a6 {[%clk 0:00:57]} 28. Nc3 {[%clk 0:00:59]}  Rac8 {[%clk 0:00:51]} 29. Nce2 {[%clk 0:00:56]}  Rb4 {[%clk 0:00:49]} 30. Qd2 {[%clk 0:00:49]}  Nc4 {[%clk 0:00:49]} 31. Qd3 {[%clk 0:00:49]}  Nb2 {[%clk 0:00:47]} 32. Qxa6 {[%clk 0:00:49]}  Nxd1 {[%clk 0:00:46]} 33. Rxd1 {[%clk 0:00:49]}  Qe8 {[%clk 0:00:33]} 34. Nd3 {[%clk 0:00:36]}  Ra8 {[%clk 0:00:30]} 35. Qb7 {[%clk 0:00:27]}  Rb8 {[%clk 0:00:29]} 36. Qc7 {[%clk 0:00:24]}  Rxa4 {[%clk 0:00:28]} 37. Ne5 {[%clk 0:00:24]}  Bb5 {[%clk 0:00:25]} 38. Nf4 {[%clk 0:00:19]}  Raa8 {[%clk 0:00:21]} 39. Qc2 {[%clk 0:00:14]}  Ba4 {[%clk 0:00:20]} 40. Qd2 {[%clk 0:00:14]}  Bxd1 {[%clk 0:00:20]} 41. Qxd1 {[%clk 0:00:15]}  Ra2 {[%clk 0:00:19]} 42. Qb3 {[%clk 0:00:13]}  Qa4 {[%clk 0:00:18]} 43. Qc3 {[%clk 0:00:11]}  Qb4 {[%clk 0:00:15]} 44. Qc7 {[%clk 0:00:11]}  Ra1+ {[%clk 0:00:14]} 45. Kh2 {[%clk 0:00:11]}  Qe7 {[%clk 0:00:12]} 46. Qxb8 {[%clk 0:00:11]}  Rb1 {[%clk 0:00:11]} 47. Qc8 {[%clk 0:00:10]}  Rb2 {[%clk 0:00:10]} 48. Nxe6 {[%clk 0:00:10]}  b5 {[%clk 0:00:08]} 49. Nf4 {[%clk 0:00:09]}  Rb3 {[%clk 0:00:06]} 50. Nxd5 {[%clk 0:00:08]}  Qg7 {[%clk 0:00:05]} 51. Qe6+ {[%clk 0:00:08]}  Kh8 {[%clk 0:00:05]} 52. Nf4 {[%clk 0:00:07]}  Rxe3 {[%clk 0:00:04]} 53. fxe3 {[%clk 0:00:07]}  b4 {[%clk 0:00:04]} 54. Nf7+ {[%clk 0:00:07]}  Kg8 {[%clk 0:00:04]} 55. Ng5+ {[%clk 0:00:07]}  Kh8 {[%clk 0:00:04]} 56. Qxf5 {[%clk 0:00:06]}  b3 {[%clk 0:00:04]} 57. Qd3 {[%clk 0:00:05]}  h6 {[%clk 0:00:03]} 58. Nge6 {[%clk 0:00:04]}  Qg4 {[%clk 0:00:02]} 59. Qxb3 {[%clk 0:00:04]}  Bd6 {[%clk 0:00:01]} 60. Qb7 {[%clk 0:00:03]}  Bxf4 {[%clk 0:00:01]} 61. Nxf4 {[%clk 0:00:03]}  Qf3 {[%clk 0:00:01]} 62. Ng2 {[%clk 0:00:03]} 1-0


[Site "https://www.chess.com"]